[Event "Finnish Women Championship 2022"]
[Site "Helsinki"]
[Date "2022.04.15"]
[Round "1.2"]
[White "Nazarova, Anastasia"]
[Black "Soboleva, Lidiia"]
[Result "1-0"]
[ECO "B33"]
[WhiteElo "2222"]
[BlackElo "1068"]
[Annotator "TA"]
[PlyCount "77"]
[EventDate "2022.04.15"]
[EventType "tourn"]
[EventCountry "FIN"]
[SourceTitle "playchess.com"]
[Source "ChessBase"]
[SourceQuality "1"]
[TimeControl "40/5400+30:1800+30"]

{[%evp 21,77,67,87,41,70,83,78,65,208,221,225,211,217,208,191,227,699,691,666,479,657,477,883,905,909,890,920,933,1064,1057,1091,1088,1083,1083,1092,1094,1151,1130,1338,1340,2072,2060,2589,5393,29972,29973,29973,29974,29973,29974,5510,5235,29984,29985,29984,29985,29993,29994]} 1. e4 {[%emt 0:00:02]} c5 {[%emt 0:00:06]} 2. Nf3 {[%emt 0:00:05]} Nc6 {[%emt 0:00:09]} 3. d4 {[%emt 0:00:09]} cxd4 {[%emt 0:00:06]} 4. Nxd4 {[%emt 0:00:04]} e5 {[%emt 0:00:25]} 5. Nb5 {[%emt 0:00:06]} d6 {[%emt 0:00:44]} 6. N1c3 {[%emt 0:00:11]} a6 {[%emt 0:00:25]} 7. Na3 {[%emt 0:00:06]} Nf6 {[%emt 0:00:12]} 8. Bg5 {[%emt 0:00:27]} Be7 {[%emt 0:00:36]} 9. Bxf6 {[%emt 0:00:46]} Bxf6 {[%emt 0:00:08]} 10. Nc4 $1 {[%emt 0:00:24][%mdl 4] now scores much better than the old 10.Nd5.} Nd4 {[%emt 0:02:20]} 11. Nd5 {[%emt 0:02:32]} b5 {[%emt 0:02:32]} (11... Bg4 $2 12. Qxg4 Nxc2+ 13. Kd1 Nxa1 14. Ncb6 $18) 12. Nce3 {[%emt 0:01:38] Pair of Knights! B33: Sicilian: Pelikan and Sveshnikov Variations.} (12. Ncb6 $16 Rb8 13. Nxc8 Qxc8 14. c3) 12... Bb7 {[%emt 0:01:46]} 13. c3 {[%emt 0:00:24]} Ne6 {[%emt 0:00:34]} 14. a4 {[%emt 0:03:22] [#] &Bianco is more active. White is better.} Bc6 $146 {[%emt 0:04:03]} ({Black should play} 14... Bxd5 $14 15. Nxd5 O-O) ({Predecessor:} 14... Nc5 15. axb5 Nxe4 16. bxa6 Bc6 17. Qf3 Nc5 18. Nxf6+ {1-0 (19) Meribanov,V (2408)-Punko,A (1699) Minsk 2020}) 15. Nxf6+ {[%emt 0:06:40]} gxf6 {[%emt 0:01:44] [#]} 16. axb5 $1 {[%emt 0:00:42]} axb5 {[%emt 0:04:29]} 17. Rxa8 {[%emt 0:00:20]} Qxa8 {[%emt 0:00:27]} 18. Qxd6 {[%emt 0:03:54] And now Be2 would win.} Qb7 $2 {[%emt 0:06:47]} (18... Qa1+ 19. Nd1 Qa6) 19. Ng4 $18 {[%emt 0:04:02][%cal Rg4f6]} Bd7 {[%emt 0:07:44]} 20. Nxf6+ {[%emt 0:00:36][%cal Bg4f6,Bf6d7,Bd7e5,Be5c6,Bc6d4,Bd4e6][%mdl 32]} Kd8 {[%emt 0:00:10]} 21. Qxe5 {[%emt 0:00:59]} Qc7 {[%emt 0:02:31]} (21... Bc6 $142 22. Nd5 Re8) 22. Nxd7 {[%emt 0:00:24]} Qxe5 {[%emt 0:00:38]} 23. Nxe5 {[%emt 0:00:06]} Rf8 {[%emt 0:00:59]} 24. Bxb5 {[%emt 0:00:08]} Nc5 {[%emt 0:00:29]} 25. f3 {[%emt 0:01:28]} f6 {[%emt 0:00:41]} 26. Nc6+ {[%emt 0:00:09]} Kc7 {[%emt 0:00:25]} 27. Nd4 {[%emt 0:00:07]} Kd6 {[%emt 0:01:12]} 28. Kd2 {[%emt 0:00:15]} Rg8 {[%emt 0:00:48]} 29. g4 {[%emt 0:00:55]} Rg5 {[%emt 0:00:47]} 30. Ke3 {[%emt 0:00:14]} h5 {[%emt 0:00:32]} 31. b4 {[%emt 0:00:55] White threatens Nf5+ and mate.} Ne6 {[%emt 0:00:38]} 32. Nxe6 {[%emt 0:00:44]} Kxe6 {[%emt 0:00:24][%mdl 4096] Endgame KRB-KR} 33. Bc4+ {[%emt 0:00:05]} Kd6 {[%emt 0:00:12]} 34. h4 {[%emt 0:00:06]} Rg7 {[%emt 0:00:38]} 35. gxh5 {[%emt 0:00:07]} Rh7 {[%emt 0:01:00]} 36. Rd1+ {[%emt 0:00:08]} Ke7 {[%emt 0:00:12]} 37. b5 {[%emt 0:00:33][%cal Bb4b5,Bb5b6,Bb6b7][%mdl 32] White mates.} Rxh5 {[%emt 0:00:12]} 38. b6 {[%emt 0:00:05]} Rc5 {[%emt 0:00:29] [#]} 39. b7 $1 {[%emt 0:00:11] Black did not feel at home in the position after the opening.  Weighted Error Value: White=0.25 (precise) /Black=1.06} 1-0

[Event "Finnish Women Championship 2022"]
[Site "Helsinki"]
[Date "2022.04.15"]
[Round "1.3"]
[White "Ivanaynen, Natalia"]
[Black "Lehtinen, Helja"]
[Result "*"]
[ECO "A36"]
[WhiteElo "1611"]
[BlackElo "1907"]
[Annotator "NA RC"]
[PlyCount "68"]
[EventDate "2022.04.15"]
[EventType "tourn"]
[EventCountry "FIN"]
[SourceTitle "playchess.com"]
[Source "ChessBase"]
[SourceQuality "1"]
[TimeControl "40/5400+30:1800+30"]

1. c4 {[%emt 0:00:05]} c5 {[%emt 0:00:09]} 2. Nc3 {[%emt 0:00:45]} Nc6 {[%emt 0:00:07]} 3. g3 {[%emt 0:00:39]} g6 {[%emt 0:00:10]} 4. Bg2 {[%emt 0:00:17]} Bg7 {[%emt 0:00:07]} 5. Nf3 {[%emt 0:02:17]} e6 {[%emt 0:00:55]} 6. e4 {[%emt 0:06:15]} Nge7 {[%emt 0:01:41]} 7. O-O {[%emt 0:03:13]} O-O {[%emt 0:00:33]} 8. d3 {[%emt 0:09:22]} d6 {[%emt 0:02:31]} 9. Be3 {[%emt 0:04:14]} Nd4 {[%emt 0:04:03]} 10. Qd2 {[%emt 0:05:36]} Re8 {[%emt 0:03:35]} 11. Bh6 {[%emt 0:06:21]} Nxf3+ {[%emt 0:07:09]} 12. Bxf3 {[%emt 0:00:21]} Bh8 {[%emt 0:00:48]} 13. Rab1 {[%emt 0:04:27]} Nc6 {[%emt 0:05:41]} 14. Bg2 {[%emt 0:01:59]} Rb8 {[%emt 0:04:25]} 15. Bf4 {[%emt 0:03:06]} a6 {[%emt 0:03:44]} 16. a3 {[%emt 0:05:17]} Nd4 {[%emt 0:05:38]} 17. b4 {[%emt 0:01:01]} cxb4 {[%emt 0:12:32]} 18. axb4 {[%emt 0:04:31]} b5 {[%emt 0:02:31]} 19. Ne2 {[%emt 0:06:17]} Bb7 {[%emt 0:14:22]} 20. Nxd4 {[%emt 0:01:28]} Bxd4 {[%emt 0:00:02]} 21. c5 {[%emt 0:00:38]} e5 {[%emt 0:02:17]} 22. Be3 {[%emt 0:00:42]} dxc5 {[%emt 0:00:55]} 23. Bxd4 {[%emt 0:03:50]} cxd4 {[%emt 0:07:17]} 24. f4 {[%emt 0:01:31]} Rc8 {[%emt 0:07:07]} 25. fxe5 {[%emt 0:01:24]} Rxe5 {[%emt 0:00:03]} 26. Qf4 {[%emt 0:00:43]} Qe7 {[%emt 0:02:17]} 27. Bh3 {[%emt 0:02:10]} Rc2 {[%emt 0:02:00]} 28. Rfc1 {[%emt 0:02:00]} Rxc1+ {[%emt 0:02:35]} 29. Rxc1 {[%emt 0:00:03]} g5 {[%emt 0:04:47]} 30. Qf3 {[%emt 0:01:32]} Qd6 {[%emt 0:01:33]} 31. Bf5 {[%emt 0:00:17]} Re7 {[%emt 0:00:45]} 32. Qh5 {[%emt 0:01:17]} h6 {[%emt 0:00:13]} 33. Rc5 {[%emt 0:00:37]} Kg7 {[%emt 0:00:34]} 34. Qg4 {[%emt 0:03:28]} Rc7 {[%emt 0:00:36]} *

[Event "Finnish Women Championship 2022"]
[Site "Helsinki"]
[Date "2022.04.15"]
[Round "1.4"]
[White "Ivanaynen, Natalia"]
[Black "Lehtinen, Helja"]
[Result "0-1"]
[ECO "E61"]
[WhiteElo "1611"]
[BlackElo "1907"]
[Annotator "TA"]
[PlyCount "56"]
[EventDate "2022.04.15"]
[EventType "tourn"]
[EventCountry "FIN"]
[SourceTitle "playchess.com"]
[Source "ChessBase"]
[SourceQuality "1"]
[TimeControl "40/5400+30:1800+30"]

{[%evp 9,56,-4,39,19,27,24,66,69,75,59,58,56,64,54,64,55,43,27,47,42,48,43,51,39,54,50,61,26,26,28,26,26,33,33,64,79,57,45,64,-270,-272,-535,-524,-29990,-29991,-29996,-29997,-29998,-29999]} 1. c4 {[%emt 0:00:05]} Nf6 {[%emt 0:00:15]} 2. d4 {[%emt 0:00:35]} g6 {[%emt 0:00:31]} 3. Bf4 {[%emt 0:01:29]} Bg7 {[%emt 0:00:30]} 4. Nc3 {[%emt 0:01:08]} d6 {[%emt 0:00:51]} 5. Qd2 {[%emt 0:11:14]} h6 {[%emt 0:08:52]} 6. h3 {[%emt 0:01:16] E61: King's Indian: Early deviations for White, including Smyslov System.} Nbd7 {[%emt 0:03:04]} 7. Nf3 {[%emt 0:00:24] [#] Against e5} g5 $146 {[%emt 0:12:26]} ({Predecessor:} 7... Nh5 8. Bh2 O-O 9. g4 Nhf6 10. Bf4 Kh7 11. O-O-O a6 12. Bg2 Qe8 13. g5 hxg5 14. Nxg5+ {1-0 (27) Walach,M (2367)-Szczepkowska,K (2310) Pszczyna 2007}) 8. Bh2 {[%emt 0:02:09] White is slightly better.} Nf8 {[%emt 0:08:18]} 9. e3 {[%emt 0:02:25]} Bf5 {[%emt 0:04:35]} 10. Bd3 {[%emt 0:00:17]} Bxd3 {[%emt 0:00:30]} 11. Qxd3 {[%emt 0:00:07]} Ng6 {[%emt 0:00:51]} 12. O-O {[%emt 0:05:32]} Qd7 {[%emt 0:05:30]} 13. Ne4 {[%emt 0:03:39]} g4 {[%emt 0:03:21]} 14. Nxf6+ {[%emt 0:03:26]} Bxf6 {[%emt 0:00:24]} 15. hxg4 {[%emt 0:00:07]} Qxg4 {[%emt 0:00:47]} 16. c5 {[%emt 0:02:17]} O-O {[%emt 0:14:53]} 17. Rac1 {[%emt 0:05:16]} Kh8 {[%emt 0:03:26]} 18. Ne1 {[%emt 0:03:01]} Rg8 {[%emt 0:06:36]} 19. f3 {[%emt 0:03:30]} Qh5 {[%emt 0:03:12]} 20. Rc2 {[%emt 0:06:06]} Rg7 {[%emt 0:03:26]} 21. g4 {[%emt 0:03:17]} Qh3 {[%emt 0:01:43]} 22. Rg2 {[%emt 0:08:15] [#] Hoping for Rg3.} Bh4 {[%emt 0:03:54] Inhibits Rg3. aiming for ...Bxe1.} 23. Qe2 {[%emt 0:16:11] And now Nd3 would win.} Rag8 {[%emt 0:02:22][%cal Oh6h5,Ba8g8,Bg8g4,Bg4g2][%mdl 32]} 24. f4 $2 {[%emt 0:02:15][%mdl 8192] This costs White the game.} (24. cxd6 $14 {keeps the upper hand.} exd6 25. e4) 24... Bxe1 $19 {[%emt 0:02:12]} 25. Rxe1 $2 {[%emt 0:07:13]} (25. Rf3 Qh4 26. Kf1) 25... Nh4 $1 {[%emt 0:00:56][%csl LRg2,LRg4][%cal Rg7g4]} 26. Rg3 {[%emt 0:01:04]} Rxg4 {[%emt 0:00:24] Black mates.} 27. Rxg4 {[%emt 0:00:32]} Rxg4+ {[%emt 0:00:10]} (27... Qxg4+ $2 {perishes.} 28. Qxg4 Rxg4+ 29. Kf1 $19) 28. Kh1 {[%emt 0:00:20]} Rg2 {[%emt 0:00:32] Weighted Error Value: White=0.70/Black=0.08 (flawless)} 0-1

[Event "Finnish Women Championship 2022"]
[Site "Helsinki"]
[Date "2022.04.17"]
[Round "3.2"]
[White "Ivanaynen, Natalia"]
[Black "Nazarova, Anastasia"]
[Result "0-1"]
[ECO "D02"]
[WhiteElo "1611"]
[BlackElo "2222"]
[Annotator "TA"]
[PlyCount "94"]
[EventDate "2022.04.15"]
[EventType "tourn"]
[EventCountry "FIN"]
[SourceTitle "playchess.com"]
[Source "ChessBase"]
[SourceQuality "1"]
[TimeControl "40/5400+30:1800+30"]

{[%evp 9,93,24,58,49,47,60,52,45,63,52,70,73,61,52,53,55,54,24,35,11,29,0,-8,-59,-88,-91,-57,-165,-166,-268,-269,-260,-253,-256,-260,-260,-237,-228,-206,-319,-285,-406,-398,-401,-396,-884,-468,-915,-906,-1202,-1198,-1069,-879,-5166,-4820,-6428,-5825,-29965,-29964,-29963,-29966,-29965,-29964,-29988,-29969,-29967,-29968,-29971,-12275,-29978,-29979,-29977,-29976,-29985,-29986,-29987,-29988,-29989,-29990,-29990,-29991,-29992,-29993,-29996,-29997,-29999]} 1. d4 {[%emt 0:00:02]} d5 {[%emt 0:12:06]} 2. Nf3 {[%emt 0:00:26]} Nf6 {[%emt 0:00:13]} 3. c3 {[%emt 0:00:35]} c5 {[%emt 0:01:33]} 4. dxc5 {[%emt 0:00:43]} a5 {[%emt 0:03:08]} 5. c4 {[%emt 0:01:05] [#]} Nc6 $146 {[%emt 0:04:43]} ({Predecessor:} 5... e6 6. Nc3 Bxc5 7. cxd5 Nxd5 8. Nxd5 exd5 9. g3 Qb6 10. e3 Nc6 11. Bg2 d4 12. exd4 Nxd4 {1-0 (39) Tabatabaei,M (2623)-Pourkashiyan,A (2322) Chess.com INT 2022}) 6. cxd5 {[%emt 0:04:08] D02: 1 d4 d5 2 Nf3 sidelines, including 2...Nf6 3 g3 and 2...Nf6 3 Bf4.} Qxd5 {[%emt 0:00:28]} 7. Qxd5 {[%emt 0:10:05]} Nxd5 {[%emt 0:00:31]} 8. e4 {[%emt 0:00:06] White is slightly better.} Ndb4 {[%emt 0:07:10] [#] White must now prevent ...Nc2+.} 9. Na3 {[%emt 0:02:33] Inhibits Nc2+.} Bg4 {[%emt 0:09:20]} 10. Be3 {[%emt 0:00:57]} O-O-O {[%emt 0:03:10]} 11. Be2 {[%emt 0:08:08]} Bxf3 {[%emt 0:02:44]} 12. gxf3 {[%emt 0:00:58]} e5 {[%emt 0:00:32]} 13. Bc4 {[%emt 0:16:11]} Nd4 {[%emt 0:07:09]} 14. Bxd4 {[%emt 0:00:35]} exd4 {[%emt 0:01:18]} 15. O-O {[%emt 0:06:02]} Bxc5 {[%emt 0:04:45]} 16. Bxf7 {[%emt 0:05:40]} (16. Rad1 $11) 16... Rhf8 {[%emt 0:04:25] Black continues to play with concentration.} 17. Be6+ {[%emt 0:00:19]} Kb8 {[%emt 0:00:07] &Nero is more active.} 18. Kg2 {[%emt 0:03:09]} (18. Nc4 $15) 18... Nd3 $19 {[%emt 0:05:19]} 19. Bb3 {[%emt 0:00:46]} (19. Bc4 $142 Nxb2 20. Nb5) 19... a4 {[%emt 0:06:26]} ({Worse is} 19... Nxb2 20. Nc4 Nxc4 21. Bxc4 $17) 20. Bd1 {[%emt 0:07:59]} Nxb2 {[%emt 0:01:16]} 21. Nb1 {[%emt 0:05:27]} a3 {[%emt 0:06:17]} 22. Nd2 {[%emt 0:00:14]} Rd6 {[%emt 0:01:16]} 23. Nb3 {[%emt 0:03:55]} Bb6 {[%emt 0:01:10]} 24. Rc1 {[%emt 0:02:52]} (24. Rg1 $142) 24... d3 {[%emt 0:07:22]} 25. Nd2 {[%emt 0:03:56]} (25. Ra1 $142) 25... Rg6+ {[%emt 0:01:13]} 26. Kh1 {[%emt 0:00:10]} Bc7 {[%emt 0:01:18] [#] Threatens to win with ...Bf4.} ({Not} 26... Ba5 $2 27. Nb3 Bb6 28. Ra1 $19) 27. Rg1 $2 {[%emt 0:01:36]} (27. e5) 27... Rxg1+ {[%emt 0:00:25]} 28. Kxg1 {[%emt 0:00:08]} Bf4 {[%emt 0:00:17]} 29. Rc3 {[%emt 0:02:35]} Bxd2 {[%emt 0:00:11]} 30. Rxa3 {[%emt 0:00:22]} Rd8 {[%emt 0:00:11]} 31. Bb3 {[%emt 0:00:49]} Bb4 {[%emt 0:00:08]} 32. Ra4 {[%emt 0:00:58]} Nxa4 {[%emt 0:00:06]} 33. Bxa4 {[%emt 0:00:04]} Rc8 {[%emt 0:00:16]} 34. Kg2 {[%emt 0:00:25]} Rc1 {[%emt 0:00:27]} 35. f4 {[%emt 0:01:01]} d2 {[%emt 0:00:11]} 36. Kg3 {[%emt 0:01:07]} d1=Q {[%emt 0:00:06]} 37. Bxd1 {[%emt 0:00:12]} Rxd1 {[%emt 0:00:04]} 38. Kg4 {[%emt 0:00:19]} Kc7 {[%emt 0:00:08] ( -> ...Ra1)} 39. f3 {[%emt 0:00:30]} Ra1 {[%emt 0:00:12] Black mates.} 40. e5 {[%emt 0:00:22]} Rxa2 {[%emt 0:00:08]} 41. h4 {[%emt 0:30:11]} Bd2 {[%emt 0:30:32]} 42. f5 {[%emt 0:01:05]} b5 {[%emt 0:00:16]} 43. e6 {[%emt 0:01:27]} b4 {[%emt 0:00:22]} 44. f4 {[%emt 0:00:14]} b3 {[%emt 0:00:14]} 45. Kg5 {[%emt 0:00:11]} b2 {[%emt 0:00:15]} 46. f6 {[%emt 0:00:51]} b1=Q {[%emt 0:00:31][%csl Gh7][%cal Rb1g6]} 47. f7 {[%emt 0:01:12]} Qg6# {[%emt 0:00:11] Weighted Error Value: White=0.93/Black=0.11 (very precise)} 0-1

[Event "Finnish Women Championship 2022"]
[Site "Helsinki"]
[Date "2022.04.17"]
[Round "3.4"]
[White "Rinne, Heini"]
[Black "Lehtinen, Helja"]
[Result "1/2-1/2"]
[ECO "A01"]
[WhiteElo "1847"]
[BlackElo "1907"]
[Annotator "TA"]
[PlyCount "68"]
[EventDate "2022.04.15"]
[EventType "tourn"]
[EventCountry "FIN"]
[SourceTitle "playchess.com"]
[Source "ChessBase"]
[SourceQuality "1"]
[TimeControl "40/5400+30:1800+30"]

{[%evp 9,68,-20,11,8,25,0,0,0,13,-41,-34,-42,46,-33,-33,-39,0,-3,-4,-12,7,-27,0,0,0,0,0,0,23,31,32,26,31,32,22,19,22,21,43,43,58,9,21,16,43,26,47,43,71,43,43,43,71,71,71,71,71,11,30,0,71]} 1. b3 {[%emt 0:00:04]} Nf6 {[%emt 0:00:23]} 2. Bb2 {[%emt 0:00:06]} g6 {[%emt 0:00:11]} 3. e3 {[%emt 0:02:51]} Bg7 {[%emt 0:00:12]} 4. c4 {[%emt 0:02:11]} O-O {[%emt 0:01:40]} 5. Nc3 {[%emt 0:03:14]} c6 {[%emt 0:04:51]} 6. Nf3 {[%emt 0:05:48] A01: Nimzowitsch-Larsen Opening.} d6 {[%emt 0:04:51][%cal Of6e4,Bd7d6,Bd6e5][%mdl 32]} (6... Ne4 $5) 7. Be2 {[%emt 0:11:34]} e5 {[%emt 0:03:25]} 8. d4 {[%emt 0:13:44] [#]} Qe7 $146 {[%emt 0:08:47]} ({Predecessor:} 8... e4 9. Nd2 Re8 10. g4 h6 11. Rg1 a6 12. Qc2 d5 13. O-O-O b5 14. c5 Nh7 {0-1 (48) Vainerchuk,B (1997)-Klachkou,P (1992) Minsk 2022}) 9. dxe5 {[%emt 0:06:59]} ({White should play} 9. O-O $11) 9... dxe5 $15 {[%emt 0:00:14]} 10. O-O {[%emt 0:00:28]} Bg4 {[%emt 0:07:57] [#]} (10... e4 $15 11. Nd2 Rd8) 11. Qc2 {[%emt 0:08:53]} (11. Nxe5 $1 $14 Rd8 12. Qc1 (12. Nxg4 Rxd1 13. Nxf6+ Bxf6 $15) 12... Qxe5 {[#]} 13. Nd5 $1 Qxd5 14. cxd5 Bxe2 15. Re1) 11... Na6 {[%emt 0:08:35][%cal Bb8a6,Ba6c5,Bc5e6][%mdl 32]} 12. Rad1 {[%emt 0:04:08]} Rad8 {[%emt 0:05:09]} (12... Nb4 $5 {[%cal Rb4c2]} 13. Ba3 a5 $11) 13. Rxd8 {[%emt 0:03:05]} Rxd8 {[%emt 0:00:10]} 14. Rd1 {[%emt 0:00:12]} Ne8 {[%emt 0:12:31]} 15. a3 {[%emt 0:05:56]} f5 {[%emt 0:04:42]} 16. e4 {[%emt 0:06:27]} Nc5 {[%emt 0:05:26]} 17. h3 {[%emt 0:08:58] And now Rxd8 would win.} Bxf3 {[%emt 0:00:28]} 18. Bxf3 {[%emt 0:00:12]} f4 {[%emt 0:01:03]} 19. b4 {[%emt 0:00:44]} Ne6 {[%emt 0:01:18]} 20. Rxd8 {[%emt 0:04:42]} Qxd8 {[%emt 0:00:16]} 21. Qd1 {[%emt 0:01:17]} Nd4 {[%emt 0:07:26]} 22. c5 {[%emt 0:00:25]} Nc7 {[%emt 0:02:56]} 23. Be2 {[%emt 0:02:12]} Nxe2+ {[%emt 0:07:50]} 24. Qxe2 {[%emt 0:00:10]} a6 {[%emt 0:01:29]} 25. Qd1 {[%emt 0:00:43]} (25. Na4 $14) 25... Qxd1+ $11 {[%emt 0:00:37]} 26. Nxd1 {[%emt 0:00:01][%mdl 4096] Endgame KBN-KBN} Ne6 {[%emt 0:00:51]} 27. Kf1 {[%emt 0:01:26]} g5 {[%emt 0:02:11]} 28. Ke2 {[%emt 0:00:53]} h5 {[%emt 0:01:26]} 29. Kd3 {[%emt 0:03:45]} Kf7 {[%emt 0:01:36]} 30. Bc3 {[%emt 0:00:49]} Ke7 {[%emt 0:02:24]} 31. Nb2 {[%emt 0:00:14]} Nd8 {[%emt 0:01:14]} 32. Nc4 {[%emt 0:00:09]} Ke6 {[%emt 0:00:06]} 33. Nd6 {[%emt 0:02:19] White is more active.} (33. g3 $16) 33... Bf8 {[%emt 0:00:39]} 34. Nc4 {[%emt 0:00:10]} Bg7 {[%emt 0:00:36] Weighted Error Value: White=0.18 (very precise) /Black=0.18 (very precise)} 1/2-1/2

[Event "Finnish Women Championship 2022"]
[Site "Helsinki"]
[Date "2022.04.18"]
[Round "4.1"]
[White "Soboleva, Lidiia"]
[Black "Norlamo, Sarabella"]
[Result "0-1"]
[ECO "C56"]
[WhiteElo "1068"]
[BlackElo "1957"]
[Annotator "TA"]
[PlyCount "76"]
[EventDate "2022.04.15"]
[EventType "tourn"]
[EventCountry "FIN"]
[SourceTitle "playchess.com"]
[Source "ChessBase"]
[SourceQuality "1"]
[TimeControl "40/5400+30:1800+30"]

{[%evp 18,76,8,0,55,36,24,0,15,-6,20,27,21,15,18,-35,-21,-120,-38,-27,-19,-109,0,-112,-95,-72,-79,-239,-241,-243,-238,-512,-501,-799,-798,-791,-791,-745,-655,-29987,-29988,-29988,-29989,-29989,-620,-29990,-29991,-29991,-29983,-29988,-29988,-29987,-29977,-29972,-29973,-29984,-29985,-29985,-29986,-29986,-29986]} 1. e4 {[%emt 0:00:03]} e5 {[%emt 0:00:06]} 2. Nf3 {[%emt 0:00:10]} Nc6 {[%emt 0:00:04]} 3. d4 {[%emt 0:00:07]} exd4 {[%emt 0:00:07]} 4. Bc4 {[%emt 0:00:14]} Nf6 {[%emt 0:00:18][%cal Bg8f6,Bf6e4,Be4g5][%mdl 32]} 5. e5 {[%emt 0:00:15]} d5 {[%emt 0:00:07]} 6. Bb5 {[%emt 0:02:05]} Ne4 {[%emt 0:00:09]} 7. Nxd4 {[%emt 0:00:10]} Bd7 {[%emt 0:00:08]} 8. Bxc6 {[%emt 0:00:55]} bxc6 {[%emt 0:00:06]} 9. O-O {[%emt 0:01:29]} Bc5 {[%emt 0:00:33]} 10. Be3 {[%emt 0:01:14]} Rb8 {[%emt 0:02:17] C56: Two Knights: 4 d4 exd4 5 0-0 Nxe4.} ({Better is} 10... Qe7 $11) 11. f3 {[%emt 0:02:37]} Ng5 {[%emt 0:01:10] [#]} 12. Kh1 $146 {[%emt 0:01:45][%cal Oe5e6]} ({Predecessor:} 12. Qd2 Ne6 13. c3 Bxd4 14. cxd4 c5 15. dxc5 Bb5 16. Rd1 c6 17. Nc3 Ba6 18. f4 Qe7 19. b4 {0-1 (35) Sahl,B (2348)-Makarenko,A (2252) Chess.com INT 2015}) 12... Bb6 {[%emt 0:09:00] The position is equal.} 13. Nd2 {[%emt 0:08:43]} O-O {[%emt 0:03:18]} (13... c5 $5 {[%cal Rc5d4]} 14. Ne2 Ne6 $11) 14. f4 {[%emt 0:05:10]} Ne6 {[%emt 0:00:41]} 15. N2b3 {[%emt 0:02:02]} Nxd4 {[%emt 0:07:30]} 16. Nxd4 {[%emt 0:01:11]} (16. Bxd4 $11 Bf5 17. Qd2) 16... f6 {[%emt 0:11:15]} 17. Qh5 {[%emt 0:09:42]} (17. a4 $11) 17... fxe5 {[%emt 0:06:03]} (17... Qe8 $17 18. Qxe8 Rfxe8) 18. fxe5 $15 {[%emt 0:00:33]} Qe7 {[%emt 0:03:10] Prevents e6.} 19. Rxf8+ {[%emt 0:12:48]} (19. e6 $1 $11 {keeps the balance.} Bxd4 20. Bxd4 Bxe6 21. Qe5) 19... Qxf8 {[%emt 0:06:37]} ({Black should try} 19... Rxf8 $17 20. Re1 c5) 20. a3 {[%emt 0:02:15]} (20. e6 $1 $11 Bxd4 21. Bxd4 Bxe6 22. Qe5) 20... Bxd4 {[%emt 0:03:34]} 21. Bxd4 {[%emt 0:00:22][%cal Oe5e6]} c5 {[%emt 0:00:12]} 22. Bc3 {[%emt 0:03:12] This move loses the game for White.} (22. Bg1 $17 {was worth a try.}) 22... d4 $19 {[%emt 0:02:23][%cal Bd5d4,Bd4d3][%mdl 32]} 23. Ba5 {[%emt 0:01:15]} Rxb2 {[%emt 0:00:49]} 24. Bxc7 $2 {[%emt 0:00:28]} (24. Kg1) 24... Rxc2 {[%emt 0:11:20] [#] aiming for ...Bc6.} 25. Bd6 {[%emt 0:03:58]} (25. Rg1 $142 Qf5 26. e6 Qxe6 27. h3) 25... Qf4 {[%emt 0:08:21]} 26. Qd1 {[%emt 0:06:37]} d3 {[%emt 0:02:45][%cal Od7h3] ( -> ...Bh3!)} 27. Qf1 {[%emt 0:05:11]} Qf5 {[%emt 0:04:18] ...d2 is the strong threat.} 28. Qd1 {[%emt 0:09:48]} Bc6 {[%emt 0:01:56]} 29. Qf1 {[%emt 0:05:57]} Qxf1+ {[%emt 0:00:26]} 30. Rxf1 {[%emt 0:00:11]} Bxg2+ {[%emt 0:00:08]} 31. Kg1 {[%emt 0:00:12][%csl Gd6][%cal Rf1f8] [#]} Bxf1 {[%emt 0:00:08] Black mates.} 32. Kxf1 {[%emt 0:00:12] KR-KB} Kf7 {[%emt 0:00:17]} 33. h4 {[%emt 0:00:45]} Ke6 {[%emt 0:00:23]} 34. Ke1 {[%emt 0:00:50]} Rc4 {[%emt 0:00:47]} 35. Kd2 {[%emt 0:00:49]} Rxh4 {[%emt 0:00:12]} 36. Kxd3 {[%emt 0:00:10]} Rd4+ {[%emt 0:00:10]} 37. Ke3 {[%emt 0:00:17]} Rxd6 {[%emt 0:00:10]} 38. exd6 {[%emt 0:00:06]} Kxd6 {[%emt 0:00:07] Weighted Error Value: White=0.70/Black=0.18 (very precise)} 0-1